[Event "71st RUS-ch Higher League 2018"]
[Site "Yaroslavl"]
[Date "2018.06.29"]
[Round "4"]
[White "Triapishko, Alexandr"]
[Black "Bykov, Oleg"]
[Result "1/2-1/2"]
[ECO "A05"]
[WhiteElo "2513"]
[BlackElo "2375"]
[Annotator "ChessBase"]
[PlyCount "205"]
[EventDate "2018.06.26"]
[EventType "swiss"]
[EventCountry "RUS"]
[SourceTitle "playchess.com"]
[Source "ChessBase"]
[SourceQuality "1"]
[TimeControl "40/5400+30:1800+30"]

1. Nf3 {[%emt 0:00:00]} Nf6 {[%emt 0:00:11]} 2. g3 {[%emt 0:00:16]} g6 {[%emt 0:00:37]} 3. Bg2 {[%emt 0:01:27]} Bg7 {[%emt 0:00:06]} 4. O-O {[%emt 0:00:40]} O-O {[%emt 0:00:07]} 5. d4 {[%emt 0:01:20]} d5 {[%emt 0:00:45]} 6. c3 {[%emt 0:03:34]} b6 {[%emt 0:05:39]} 7. Bf4 {[%emt 0:18:13]} Bb7 {[%emt 0:00:22]} 8. a4 {[%emt 0:02:03]} c5 {[%emt 0:03:26]} 9. Ne5 {[%emt 0:04:38]} Ne4 {[%emt 0:04:24]} 10. Nd2 {[%emt 0:05:23]} Nd6 {[%emt 0:05:39]} 11. a5 {[%emt 0:12:24]} Na6 {[%emt 0:06:38]} 12. h4 {[%emt 0:03:38]} Re8 {[%emt 0:07:20]} 13. h5 {[%emt 0:14:12]} f6 {[%emt 0:10:04]} 14. hxg6 {[%emt 0:05:35]} fxe5 {[%emt 0:09:13]} 15. dxe5 {[%emt 0:00:56]} hxg6 {[%emt 0:03:49]} 16. exd6 {[%emt 0:00:46]} e5 {[%emt 0:00:22]} 17. Be3 {[%emt 0:10:07]} Qxd6 {[%emt 0:00:30]} 18. c4 {[%emt 0:01:12]} Nb4 {[%emt 0:02:38]} 19. Ne4 {[%emt 0:00:37]} Qd7 {[%emt 0:05:05]} 20. cxd5 {[%emt 0:01:13]} Bxd5 {[%emt 0:00:30]} 21. Nc3 {[%emt 0:03:11]} e4 {[%emt 0:01:29]} 22. axb6 {[%emt 0:00:22]} axb6 {[%emt 0:00:13]} 23. Rxa8 {[%emt 0:00:37]} Rxa8 {[%emt 0:00:02]} 24. Bxe4 {[%emt 0:02:27]} Bxc3 {[%emt 0:00:24]} 25. bxc3 {[%emt 0:00:16]} Qe6 {[%emt 0:03:19]} 26. Bxd5 {[%emt 0:01:24]} Nxd5 {[%emt 0:00:05]} 27. Qb3 {[%emt 0:00:15]} Qe4 {[%emt 0:02:04]} 28. Bd2 {[%emt 0:03:22]} c4 {[%emt 0:07:55]} 29. Qb1 {[%emt 0:00:06]} Qxb1 {[%emt 0:04:36]} 30. Rxb1 {[%emt 0:00:04]} Ra2 {[%emt 0:00:11]} 31. e4 {[%emt 0:00:44]} Rxd2 {[%emt 0:03:51]} 32. exd5 {[%emt 0:00:04]} Rd3 {[%emt 0:03:16]} 33. Rxb6 {[%emt 0:00:53]} Kf7 {[%emt 0:00:32]} 34. Kg2 {[%emt 0:02:35]} Rxc3 {[%emt 0:00:19]} 35. Rc6 {[%emt 0:00:14]} Rd3 {[%emt 0:00:23]} 36. Rxc4 {[%emt 0:00:44]} Rxd5 {[%emt 0:00:05]} 37. Kh3 {[%emt 0:00:02]} Rd2 {[%emt 0:01:08]} 38. f3 {[%emt 0:01:09]} Rd3 {[%emt 0:00:45]} 39. Kg4 {[%emt 0:01:24]} Ra3 {[%emt 0:00:14]} 40. Re4 {[%emt 0:00:00]} Kf6 {[%emt 0:00:55]} 41. Kf4 {[%emt 0:04:21]} Rb3 {[%emt 0:00:47]} 42. Rd4 {[%emt 0:02:11]} Ra3 {[%emt 0:00:13]} 43. Kg4 {[%emt 0:05:03]} Rb3 {[%emt 0:00:08]} 44. Rd6+ {[%emt 0:03:47]} Kf7 {[%emt 0:00:13]} 45. Kf4 {[%emt 0:01:05]} Ra3 {[%emt 0:00:19]} 46. g4 {[%emt 0:00:36]} Ra5 {[%emt 0:00:45]} 47. Ke4 {[%emt 0:01:43]} Rb5 {[%emt 0:02:44]} 48. f4 {[%emt 0:02:37]} Ra5 {[%emt 0:02:50]} 49. Rd7+ {[%emt 0:03:46]} Ke6 {[%emt 0:01:57]} 50. Rd4 {[%emt 0:00:15]} Kf7 {[%emt 0:00:32]} 51. Rd5 {[%emt 0:00:35]} Ra1 {[%emt 0:00:54]} 52. Rb5 {[%emt 0:01:05]} Re1+ {[%emt 0:00:41]} 53. Kd5 {[%emt 0:00:14]} Rd1+ {[%emt 0:00:56]} 54. Ke5 {[%emt 0:00:27]} Re1+ {[%emt 0:00:05]} 55. Kd4 {[%emt 0:00:23]} Rd1+ {[%emt 0:00:22]} 56. Ke3 {[%emt 0:00:04]} Re1+ {[%emt 0:00:18]} 57. Kf2 {[%emt 0:00:06]} Ra1 {[%emt 0:00:34]} 58. Kg3 {[%emt 0:00:31]} Ra7 {[%emt 0:01:14]} 59. Kh4 {[%emt 0:01:02]} Kg7 {[%emt 0:00:39]} 60. Kg5 {[%emt 0:00:37]} Rc7 {[%emt 0:00:15]} 61. Rd5 {[%emt 0:02:29]} Ra7 {[%emt 0:00:27]} 62. Kh4 {[%emt 0:00:45]} Rb7 {[%emt 0:00:11]} 63. Kg3 {[%emt 0:00:25]} Rb3+ {[%emt 0:00:18]} 64. Kf2 {[%emt 0:00:04]} Kf7 {[%emt 0:00:37]} 65. Rc5 {[%emt 0:00:27]} Ra3 {[%emt 0:00:38]} 66. Re5 {[%emt 0:00:35]} Rb3 {[%emt 0:00:08]} 67. Re3 {[%emt 0:00:03]} Rb4 {[%emt 0:00:19]} 68. Kf3 {[%emt 0:00:09]} Ra4 {[%emt 0:00:07]} 69. Rc3 {[%emt 0:00:31]} Rb4 {[%emt 0:01:16]} 70. Rc7+ {[%emt 0:01:27]} Kf8 {[%emt 0:00:13]} 71. Ke3 {[%emt 0:01:43]} Ra4 {[%emt 0:00:09]} 72. g5 {[%emt 0:00:31]} Rb4 {[%emt 0:00:23]} 73. Rd7 {[%emt 0:00:18]} Ra4 {[%emt 0:00:10]} 74. Rd4 {[%emt 0:00:24]} Ra1 {[%emt 0:00:14]} 75. Ke4 {[%emt 0:00:19]} Re1+ {[%emt 0:00:44]} 76. Kd5 {[%emt 0:00:03]} Kf7 {[%emt 0:00:12]} 77. Kd6 {[%emt 0:00:41]} Re2 {[%emt 0:00:41]} 78. Kd7 {[%emt 0:00:50]} Re1 {[%emt 0:00:08]} 79. Rd6 {[%emt 0:00:42]} Re4 {[%emt 0:00:28]} 80. Rf6+ {[%emt 0:00:04]} Kg7 {[%emt 0:00:04]} 81. Kd6 {[%emt 0:00:16]} Ra4 {[%emt 0:00:13]} 82. Ke5 {[%emt 0:00:16]} Ra5+ {[%emt 0:00:10]} 83. Ke4 {[%emt 0:00:03]} Ra4+ {[%emt 0:00:06]} 84. Kf3 {[%emt 0:00:01]} Ra3+ {[%emt 0:00:07]} 85. Kg4 {[%emt 0:00:04]} Rb3 {[%emt 0:00:10]} 86. Rd6 {[%emt 0:00:31]} Ra3 {[%emt 0:00:05]} 87. Rd7+ {[%emt 0:00:15]} Kg8 {[%emt 0:00:06]} 88. Rd1 {[%emt 0:00:31]} Kg7 {[%emt 0:00:06]} 89. Rd4 {[%emt 0:00:19]} Rb3 {[%emt 0:00:08]} 90. f5 {[%emt 0:00:17]} gxf5+ {[%emt 0:00:04]} 91. Kxf5 {[%emt 0:00:03]} Rb5+ {[%emt 0:00:13]} 92. Kg4 {[%emt 0:00:05]} Rb1 {[%emt 0:00:24]} 93. Re4 {[%emt 0:00:41]} Rg1+ {[%emt 0:00:20]} 94. Kf5 {[%emt 0:00:03]} Rf1+ {[%emt 0:00:08]} 95. Rf4 {[%emt 0:00:02]} Rxf4+ {[%emt 0:00:41]} 96. Kxf4 {[%emt 0:00:03]} Kg6 {[%emt 0:00:09]} 97. Kg4 {[%emt 0:00:02]} Kg7 {[%emt 0:00:08]} 98. Kf5 {[%emt 0:00:02]} Kf7 {[%emt 0:00:04]} 99. g6+ {[%emt 0:00:05]} Kg7 {[%emt 0:00:02]} 100. Kg5 {[%emt 0:00:05]} Kg8 {[%emt 0:00:07]} 101. Kh6 {[%emt 0:00:02]} Kh8 {[%emt 0:00:06]} 102. g7+ {[%emt 0:00:04]} Kg8 {[%emt 0:00:04]} 103. Kg6 {[%emt 0:00:02]} 1/2-1/2

[Event "71st RUS-ch Higher League 2018"]
[Site "Yaroslavl"]
[Date "2018.06.29"]
[Round "4"]
[White "Usmanov, Vasily"]
[Black "Tekeyev, Zaur"]
[Result "1-0"]
[ECO "A45"]
[WhiteElo "2477"]
[BlackElo "2407"]
[Annotator "ChessBase"]
[PlyCount "91"]
[EventDate "2018.06.26"]
[EventType "swiss"]
[EventCountry "RUS"]
[SourceTitle "playchess.com"]
[Source "ChessBase"]
[SourceQuality "1"]
[TimeControl "40/5400+30:1800+30"]

1. d4 {[%emt 0:00:00]} Nf6 {[%emt 0:02:17]} 2. g3 {[%emt 0:00:00]} c5 {[%emt 0:05:53]} 3. d5 {[%emt 0:04:15]} b5 {[%emt 0:00:10]} 4. a4 {[%emt 0:02:36]} Qa5+ {[%emt 0:14:05]} 5. Bd2 {[%emt 0:03:30]} b4 {[%emt 0:00:37]} 6. Bg2 {[%emt 0:00:23]} d6 {[%emt 0:01:07]} 7. c4 {[%emt 0:04:49]} g6 {[%emt 0:10:28]} 8. e4 {[%emt 0:11:34]} Nbd7 {[%emt 0:07:09]} 9. b3 {[%emt 0:03:38]} Bg7 {[%emt 0:05:06]} 10. Ra2 {[%emt 0:00:59]} O-O {[%emt 0:09:24]} 11. Ne2 {[%emt 0:00:21]} Ba6 {[%emt 0:02:30]} 12. O-O {[%emt 0:01:41]} Ne5 {[%emt 0:05:52]} 13. Qc1 {[%emt 0:10:46]} Nfd7 {[%emt 0:09:41]} 14. Bg5 {[%emt 0:27:42]} Rfe8 {[%emt 0:01:49]} 15. f4 {[%emt 0:00:57]} Nxc4 {[%emt 0:01:34]} 16. bxc4 {[%emt 0:00:04]} b3 {[%emt 0:00:08]} 17. Rb2 {[%emt 0:04:44]} h6 {[%emt 0:04:10]} 18. Bxh6 {[%emt 0:03:45]} Bxh6 {[%emt 0:00:40]} 19. Rxb3 {[%emt 0:00:20]} Qxa4 {[%emt 0:01:06]} 20. Nd2 {[%emt 0:00:11]} Qa5 {[%emt 0:02:59]} 21. Ra3 {[%emt 0:00:09]} Qb6 {[%emt 0:00:15]} 22. Qc2 {[%emt 0:00:25]} Bc8 {[%emt 0:00:55]} 23. Rb1 {[%emt 0:03:06]} Qd8 {[%emt 0:01:15]} 24. Qa2 {[%emt 0:01:14]} a6 {[%emt 0:01:22]} 25. Nb3 {[%emt 0:00:21]} Rb8 {[%emt 0:04:25]} 26. Na5 {[%emt 0:00:04]} Rxb1+ {[%emt 0:00:07]} 27. Qxb1 {[%emt 0:00:01]} e5 {[%emt 0:00:15]} 28. Nc6 {[%emt 0:01:52]} Qf6 {[%emt 0:01:43]} 29. Rf3 {[%emt 0:03:18]} exf4 {[%emt 0:03:58]} 30. gxf4 {[%emt 0:00:02]} Bg7 {[%emt 0:00:17]} 31. e5 {[%emt 0:01:09]} Qf5 {[%emt 0:02:05]} 32. Qxf5 {[%emt 0:04:14]} gxf5 {[%emt 0:00:01]} 33. Ng3 {[%emt 0:00:14]} Nb6 {[%emt 0:01:47]} 34. Nh5 {[%emt 0:00:15]} Kh7 {[%emt 0:01:24]} 35. Rh3 {[%emt 0:02:23]} Kg6 {[%emt 0:00:01]} 36. Bf3 {[%emt 0:00:05]} Bh8 {[%emt 0:01:20]} 37. Rg3+ {[%emt 0:00:39]} Kh6 {[%emt 0:00:13]} 38. Rh3 {[%emt 0:03:13]} Kg6 {[%emt 0:00:02]} 39. exd6 {[%emt 0:00:19]} f6 {[%emt 0:00:15]} 40. Ne7+ {[%emt 0:00:00]} Kf7 {[%emt 0:00:12]} 41. Ng3 {[%emt 0:02:42]} Rd8 {[%emt 0:07:32]} 42. Rh7+ {[%emt 0:01:47]} Bg7 {[%emt 0:00:25]} 43. Nh5 {[%emt 0:00:56]} Rxd6 {[%emt 0:01:20]} 44. Rxg7+ {[%emt 0:00:13]} Ke8 {[%emt 0:01:09]} 45. Nxc8 {[%emt 0:00:07]} Nxc8 {[%emt 0:00:03]} 46. Rc7 {[%emt 0:00:09]} 1-0

[Event "71st RUS-ch Higher League 2018"]
[Site "Yaroslavl"]
[Date "2018.06.29"]
[Round "4"]
[White "Iskusnyh, Sergei"]
[Black "Rodin, Dmitrij"]
[Result "1-0"]
[ECO "A40"]
[WhiteElo "2473"]
[BlackElo "2402"]
[Annotator "ChessBase"]
[PlyCount "141"]
[EventDate "2018.06.26"]
[EventType "swiss"]
[EventCountry "RUS"]
[SourceTitle "playchess.com"]
[Source "ChessBase"]
[SourceQuality "1"]
[TimeControl "40/5400+30:1800+30"]

1. d4 {[%emt 0:00:00]} Nf6 {[%emt 0:00:06]} 2. c4 {[%emt 0:00:00]} e6 {[%emt 0:00:05]} 3. g3 {[%emt 0:00:05]} d5 {[%emt 0:00:34]} 4. Nf3 {[%emt 0:00:21]} Bb4+ {[%emt 0:00:35]} 5. Bd2 {[%emt 0:01:09]} Bd6 {[%emt 0:00:06]} 6. Nc3 {[%emt 0:02:03]} O-O {[%emt 0:01:40]} 7. Qc2 {[%emt 0:02:48]} Nbd7 {[%emt 0:12:33]} 8. Bg2 {[%emt 0:46:15]} c6 {[%emt 0:11:39]} 9. O-O {[%emt 0:01:58]} dxc4 {[%emt 0:04:58]} 10. Rfd1 {[%emt 0:04:13]} Qe7 {[%emt 0:03:54]} 11. Ng5 {[%emt 0:02:25]} Bc7 {[%emt 0:16:33]} 12. Be1 {[%emt 0:11:56]} h6 {[%emt 0:03:44]} 13. Nge4 {[%emt 0:02:55]} Nd5 {[%emt 0:01:32]} 14. Nd2 {[%emt 0:05:01]} b5 {[%emt 0:09:42]} 15. b3 {[%emt 0:05:09]} Ba5 {[%emt 0:04:13]} 16. Nde4 {[%emt 0:05:52]} f5 {[%emt 0:07:12]} 17. Nxd5 {[%emt 0:01:35]} exd5 {[%emt 0:00:06]} 18. Nc3 {[%emt 0:00:20]} Bxc3 {[%emt 0:04:10]} 19. Bxc3 {[%emt 0:00:38]} b4 {[%emt 0:00:48]} 20. Be1 {[%emt 0:02:17]} Ba6 {[%emt 0:00:57]} 21. e3 {[%emt 0:01:35]} Bb5 {[%emt 0:00:19]} 22. a3 {[%emt 0:01:25]} bxa3 {[%emt 0:00:27]} 23. bxc4 {[%emt 0:00:18]} Bxc4 {[%emt 0:00:29]} 24. Qa4 {[%emt 0:00:37]} Nb6 {[%emt 0:04:16]} 25. Qa5 {[%emt 0:00:57]} Rfb8 {[%emt 0:01:55]} 26. Bb4 {[%emt 0:00:18]} Qd7 {[%emt 0:00:07]} 27. Bxa3 {[%emt 0:00:24]} Bb5 {[%emt 0:00:53]} 28. Bc5 {[%emt 0:00:19]} Nc4 {[%emt 0:00:07]} 29. Qc3 {[%emt 0:00:08]} a5 {[%emt 0:00:40]} 30. Qc2 {[%emt 0:00:59]} Qe6 {[%emt 0:00:38]} 31. Bh3 {[%emt 0:00:33]} g6 {[%emt 0:00:15]} 32. Bf1 {[%emt 0:00:27]} Rb7 {[%emt 0:02:56]} 33. Rdb1 {[%emt 0:00:15]} a4 {[%emt 0:02:06]} 34. Bxc4 {[%emt 0:00:38]} dxc4 {[%emt 0:00:05]} 35. Re1 {[%emt 0:00:37]} Qe4 {[%emt 0:00:39]} 36. Qxe4 {[%emt 0:00:53]} fxe4 {[%emt 0:00:01]} 37. Kg2 {[%emt 0:00:32]} Rf7 {[%emt 0:00:21]} 38. Reb1 {[%emt 0:00:17]} Rd8 {[%emt 0:00:17]} 39. Rf1 {[%emt 0:00:40]} Rf3 {[%emt 0:00:05]} 40. Ra2 {[%emt 0:00:00]} Kf7 {[%emt 0:00:44]} 41. Rc1 {[%emt 0:03:00]} Ke6 {[%emt 0:02:25]} 42. Rc3 {[%emt 0:00:21]} Rd5 {[%emt 0:01:59]} 43. Rb2 {[%emt 0:00:33]} g5 {[%emt 0:03:40]} 44. h3 {[%emt 0:00:38]} h5 {[%emt 0:01:22]} 45. Ba3 {[%emt 0:00:30]} g4 {[%emt 0:01:03]} 46. Rbc2 {[%emt 0:20:26]} Rdf5 {[%emt 0:01:42]} 47. h4 {[%emt 0:00:41]} Rf7 {[%emt 0:01:11]} 48. Rb2 {[%emt 0:01:20]} Kd5 {[%emt 0:00:46]} 49. Bc5 {[%emt 0:01:17]} Rb7 {[%emt 0:00:19]} 50. Ra2 {[%emt 0:00:34]} Rbf7 {[%emt 0:04:57]} 51. Kg1 {[%emt 0:00:51]} Ke6 {[%emt 0:00:49]} 52. Kg2 {[%emt 0:01:17]} R3f5 {[%emt 0:00:07]} 53. Ba3 {[%emt 0:01:42]} Rb7 {[%emt 0:00:42]} 54. Rb2 {[%emt 0:01:29]} Rff7 {[%emt 0:00:40]} 55. Rb4 {[%emt 0:01:16]} Kd5 {[%emt 0:00:40]} 56. Rc2 {[%emt 0:00:34]} Rfd7 {[%emt 0:01:05]} 57. Rc1 {[%emt 0:00:19]} c5 {[%emt 0:01:27]} 58. dxc5 {[%emt 0:00:17]} Kc6 {[%emt 0:00:02]} 59. Rbxc4 {[%emt 0:03:01]} Bxc4 60. Rxc4 Ra7 {[%emt 0:01:01]} 61. Rxe4 {[%emt 0:00:01]} Rd3 {[%emt 0:00:39]} 62. Re6+ {[%emt 0:00:07]} Kb5 {[%emt 0:01:16]} 63. Rb6+ {[%emt 0:00:43]} Kc4 {[%emt 0:00:35]} 64. Rb4+ {[%emt 0:00:07]} Kd5 {[%emt 0:01:16]} 65. e4+ {[%emt 0:00:10]} Ke6 {[%emt 0:00:51]} 66. Rb6+ {[%emt 0:02:22]} Ke5 {[%emt 0:00:50]} 67. Bc1 {[%emt 0:00:22]} a3 {[%emt 0:00:25]} 68. Rb5 {[%emt 0:00:39]} Kxe4 {[%emt 0:00:47]} 69. c6 {[%emt 0:00:05]} a2 {[%emt 0:00:35]} 70. Bb2 {[%emt 0:00:04]} a1=Q {[%emt 0:00:23]} 71. Re5# {[%emt 0:00:06] Ra8} 1-0

[Event "71st RUS-ch Higher League 2018"]
[Site "Yaroslavl"]
[Date "2018.06.29"]
[Round "4"]
[White "Fakhrutdinov, Timur"]
[Black "Alekseenko, Kirill"]
[Result "0-1"]
[ECO "B92"]
[WhiteElo "2460"]
[BlackElo "2621"]
[Annotator "ChessBase"]
[PlyCount "120"]
[EventDate "2018.06.26"]
[EventType "swiss"]
[EventCountry "RUS"]
[SourceTitle "playchess.com"]
[Source "ChessBase"]
[SourceQuality "1"]
[TimeControl "40/5400+30:1800+30"]

1. e4 {[%emt 0:00:00]} c5 {[%emt 0:00:16]} 2. Nf3 {[%emt 0:00:00]} d6 {[%emt 0:00:26]} 3. d4 {[%emt 0:00:00]} cxd4 {[%emt 0:00:16]} 4. Nxd4 {[%emt 0:00:00]} Nf6 {[%emt 0:00:11]} 5. Nc3 {[%emt 0:00:00]} a6 {[%emt 0:00:24]} 6. Be2 {[%emt 0:00:12]} e5 {[%emt 0:00:30]} 7. Nb3 {[%emt 0:00:07]} Be7 {[%emt 0:00:27]} 8. O-O {[%emt 0:00:13]} O-O {[%emt 0:00:27]} 9. Qd3 {[%emt 0:00:18]} Be6 {[%emt 0:01:14]} 10. Be3 {[%emt 0:00:14]} Nbd7 {[%emt 0:00:52]} 11. Nd5 {[%emt 0:00:33]} Bxd5 {[%emt 0:00:25]} 12. exd5 {[%emt 0:00:06]} Ne8 {[%emt 0:00:26]} 13. Qd2 {[%emt 0:01:04]} f5 {[%emt 0:07:25]} 14. g3 {[%emt 0:00:36]} Nef6 {[%emt 0:03:29]} 15. f3 {[%emt 0:00:40]} a5 {[%emt 0:07:48]} 16. Rad1 {[%emt 0:16:16]} g6 {[%emt 0:04:28]} 17. c4 {[%emt 0:02:46]} b6 {[%emt 0:01:10]} 18. Na1 {[%emt 0:04:48]} Rc8 {[%emt 0:20:34]} 19. Nc2 {[%emt 0:01:35]} Nh5 {[%emt 0:02:04]} 20. g4 {[%emt 0:25:34]} Ng7 {[%emt 0:09:51]} 21. Kg2 {[%emt 0:01:07]} f4 {[%emt 0:03:45]} 22. Bg1 {[%emt 0:01:43]} Bh4 {[%emt 0:00:07]} 23. Na3 {[%emt 0:08:01]} h5 {[%emt 0:07:09]} 24. Nb5 {[%emt 0:03:55]} Ne8 {[%emt 0:01:18]} 25. gxh5 {[%emt 0:09:40]} Rf5 {[%emt 0:10:32]} 26. Bd3 {[%emt 0:05:58]} Rxh5 {[%emt 0:00:39]} 27. Kh1 {[%emt 0:03:42]} Kg7 {[%emt 0:01:48]} 28. Qc2 {[%emt 0:03:28]} Qg5 {[%emt 0:04:28]} 29. Rd2 {[%emt 0:01:55]} Bg3 {[%emt 0:00:30]} 30. Rg2 {[%emt 0:01:18]} Nc5 {[%emt 0:00:11]} 31. Bxc5 {[%emt 0:04:42]} Rxc5 {[%emt 0:02:38]} 32. b3 {[%emt 0:01:29]} Rh6 {[%emt 0:00:25]} 33. Kg1 {[%emt 0:01:56]} Bxh2+ {[%emt 0:02:08]} 34. Kf2 {[%emt 0:00:07]} Bg3+ {[%emt 0:00:03]} 35. Ke2 {[%emt 0:00:08]} Rc8 {[%emt 0:00:15]} 36. Kd1 {[%emt 0:01:47]} Qe7 {[%emt 0:00:50]} 37. Qe2 {[%emt 0:01:22]} Qd7 {[%emt 0:02:27]} 38. Nc3 {[%emt 0:01:01]} Nf6 {[%emt 0:03:30]} 39. Ne4 {[%emt 0:00:16]} Nxe4 {[%emt 0:01:46]} 40. Qxe4 {[%emt 0:00:00]} Qc7 {[%emt 0:01:16]} 41. Kc2 {[%emt 0:07:55]} Rf8 {[%emt 0:00:46]} 42. Kb2 {[%emt 0:02:07]} Rf5 {[%emt 0:01:31]} 43. a3 {[%emt 0:08:16]} Qc5 {[%emt 0:01:50]} 44. Bc2 {[%emt 0:05:05]} Rfh5 {[%emt 0:05:37]} 45. Rd1 {[%emt 0:01:38]} Kf6 {[%emt 0:04:08]} 46. Qd3 {[%emt 0:01:28]} Rg5 {[%emt 0:00:43]} 47. Qd2 {[%emt 0:01:55]} Rh8 {[%emt 0:01:12]} 48. Qd3 {[%emt 0:00:27]} Rh2 {[%emt 0:05:36]} 49. Rdd2 {[%emt 0:00:29]} Rh1 {[%emt 0:00:40]} 50. Rd1 {[%emt 0:00:21]} Rh6 {[%emt 0:01:56]} 51. Qd2 {[%emt 0:00:37]} Rhh5 {[%emt 0:04:07]} 52. Qd3 {[%emt 0:00:26]} Bf2 {[%emt 0:00:50]} 53. Rxg5 {[%emt 0:01:46]} Rxg5 {[%emt 0:00:05]} 54. Rh1 {[%emt 0:01:30]} Rg3 {[%emt 0:00:19]} 55. Qe4 {[%emt 0:03:00]} Kg7 {[%emt 0:01:44]} 56. Kb1 {[%emt 0:01:51]} Qxa3 {[%emt 0:00:47]} 57. Rd1 {[%emt 0:00:14]} Qc5 {[%emt 0:01:15]} 58. Rd3 {[%emt 0:00:26]} Bd4 {[%emt 0:00:40]} 59. Rd1 {[%emt 0:00:22]} a4 {[%emt 0:00:07]} 60. Ka2 {[%emt 0:00:46]} Rg2 {[%emt 0:02:52]} 0-1

[Event "71st RUS-ch Higher League 2018"]
[Site "Yaroslavl"]
[Date "2018.06.29"]
[Round "4"]
[White "Gaifullin, Artur"]
[Black "Sek, Konstantin"]
[Result "1-0"]
[ECO "A61"]
[WhiteElo "2448"]
[BlackElo "2476"]
[Annotator "ChessBase"]
[PlyCount "113"]
[EventDate "2018.06.26"]
[EventType "swiss"]
[EventCountry "RUS"]
[SourceTitle "playchess.com"]
[Source "ChessBase"]
[SourceQuality "1"]
[TimeControl "40/5400+30:1800+30"]

1. Nf3 {[%emt 0:00:00]} Nf6 {[%emt 0:02:25]} 2. d4 {[%emt 0:00:00]} e6 {[%emt 0:00:12]} 3. c4 {[%emt 0:00:00]} c5 {[%emt 0:00:06]} 4. d5 {[%emt 0:00:00]} exd5 {[%emt 0:00:04]} 5. cxd5 {[%emt 0:00:00]} d6 {[%emt 0:00:05]} 6. Nc3 {[%emt 0:00:00]} g6 {[%emt 0:00:04]} 7. h3 {[%emt 0:00:00]} Bg7 {[%emt 0:06:23]} 8. e4 {[%emt 0:00:04]} O-O {[%emt 0:00:08]} 9. Bd3 {[%emt 0:00:04]} a6 {[%emt 0:02:40]} 10. a4 {[%emt 0:00:09]} Nbd7 {[%emt 0:00:06]} 11. O-O {[%emt 0:00:09]} Re8 {[%emt 0:00:02]} 12. Re1 {[%emt 0:00:05]} Nh5 {[%emt 0:00:43]} 13. Bg5 {[%emt 0:01:34]} Bf6 {[%emt 0:00:18]} 14. Bd2 {[%emt 0:04:39]} Rb8 {[%emt 0:09:03]} 15. g4 {[%emt 0:06:13]} Ng7 {[%emt 0:01:02]} 16. Bf1 {[%emt 0:06:20]} g5 {[%emt 0:03:36]} 17. e5 {[%emt 0:03:44]} Nxe5 {[%emt 0:02:05]} 18. Ne4 {[%emt 0:00:55]} h6 {[%emt 0:28:30]} 19. Ra3 {[%emt 0:18:58]} Nxf3+ {[%emt 0:05:12]} 20. Rxf3 {[%emt 0:00:02]} Bxb2 {[%emt 0:00:44]} 21. Qb1 {[%emt 0:11:49]} Be5 {[%emt 0:04:50]} 22. Bd3 {[%emt 0:00:32]} f5 {[%emt 0:10:02]} 23. Ng3 {[%emt 0:07:06]} f4 {[%emt 0:06:48]} 24. Bg6 {[%emt 0:01:01]} Rf8 {[%emt 0:01:54]} 25. Ne4 {[%emt 0:00:12]} c4 {[%emt 0:01:57]} 26. Nxd6 {[%emt 0:13:33]} Bxd6 {[%emt 0:03:14]} 27. Bh7+ {[%emt 0:00:06]} Kh8 {[%emt 0:00:06]} 28. Bc3 {[%emt 0:00:04]} Rf6 {[%emt 0:01:17]} 29. Qa1 {[%emt 0:01:09]} Kxh7 {[%emt 0:07:02]} 30. Bxf6 {[%emt 0:00:06]} Qf8 {[%emt 0:00:36]} 31. Qb1+ {[%emt 0:02:53]} Bf5 {[%emt 0:02:29]} 32. Bxg7 {[%emt 0:00:06]} Bxb1 {[%emt 0:00:04]} 33. Bxf8 {[%emt 0:00:05]} Bxf8 {[%emt 0:00:27]} 34. Rxb1 {[%emt 0:00:05]} b5 {[%emt 0:00:03]} 35. Rc3 {[%emt 0:02:24]} Bd6 {[%emt 0:00:07]} 36. Rc2 {[%emt 0:00:06]} Kg7 {[%emt 0:00:24]} 37. Kg2 {[%emt 0:06:46]} Kf7 {[%emt 0:01:09]} 38. Kf3 {[%emt 0:00:11]} Ke7 {[%emt 0:00:31]} 39. Ke4 {[%emt 0:00:12]} Kd7 {[%emt 0:00:14]} 40. Kd4 {[%emt 0:00:00]} Bc7 {[%emt 0:01:03]} 41. axb5 {[%emt 0:07:09]} axb5 {[%emt 0:00:09]} 42. Rcb2 {[%emt 0:00:28]} c3 {[%emt 0:09:45]} 43. Ra2 {[%emt 0:06:42]} b4 {[%emt 0:01:24]} 44. Kc4 {[%emt 0:00:05]} Bd6 {[%emt 0:00:45]} 45. Ra7+ {[%emt 0:04:25]} Kd8 {[%emt 0:02:27]} 46. Kb3 {[%emt 0:00:13]} Rb5 {[%emt 0:01:12]} 47. Rd1 {[%emt 0:00:22]} Rc5 {[%emt 0:01:56]} 48. Kc2 {[%emt 0:00:07]} Rb5 {[%emt 0:01:23]} 49. f3 {[%emt 0:07:30]} Be5 {[%emt 0:00:48]} 50. Kb3 {[%emt 0:00:13]} Bd6 {[%emt 0:02:28]} 51. Rda1 {[%emt 0:03:47]} Bb8 {[%emt 0:06:44]} 52. R1a5 {[%emt 0:02:20]} Rb6 {[%emt 0:00:56]} 53. R7a6 {[%emt 0:00:07]} Rb7 {[%emt 0:00:14]} 54. Rxh6 {[%emt 0:00:21]} Bc7 {[%emt 0:00:50]} 55. Ra8+ {[%emt 0:00:17]} Kd7 {[%emt 0:00:00]} 56. Raa6 {[%emt 0:00:57]} Rb5 {[%emt 0:00:51]} 57. Rh7+ {[%emt 0:00:16]} 1-0